bitfinex/quotes_ETHUSD_20250328
["timestamp","ask_amount","ask_price","bid_price","bid_amount"]
[1743188645063,5.31162,1882.7,1882.4,5.8484]
[1743188646134,11.37102,1882.9,1882.5,5.31206]
[1743188646348,11.37102,1882.9,1882.5,10.62391]
[1743188646647,16.68218,1882.9,1882.5,5.31185]
[1743188646840,5.31125,1882.8,1882.5,5.31185]
[1743188647323,5.31123,1882.8,1882.4,5.8484]
[1743188647528,6.10406,1882.7,1882.4,5.034]
[1743188647727,5.31181,1882.6,1882.4,5.034]
[1743188648324,5.31218,1882.5,1882.2,0.7968]
[1743188648550,5.31218,1882.5,1882.3,5.034]
[1743188650047,5.31236,1882.4,1882.3,5.034]
[1743188650249,5.31236,1882.4,1882.0,33.42236]
[1743188650250,5.31306,1882.2,1882.0,28.109]
[1743188650417,5.31306,1882.2,1882.1,5.034]
[1743188650817,6.08946,1882.3,1882.1,5.034]
[1743188651755,11.40222,1882.3,1882.1,5.034]
[1743188652428,5.31293,1882.2,1882.1,5.034]
[1743188652838,6.08946,1882.3,1882.1,5.034]
[1743188653040,16.68508,1882.4,1882.1,5.034]
[1743188653354,5.31276,1882.3,1882.1,5.034]
[1743188654363,10.62561,1882.3,1882.1,5.034]
[1743188654719,5.31276,1882.3,1882.1,5.034]
[1743188655221,10.62561,1882.3,1882.1,5.034]
[1743188655953,6.06,1882.4,1882.1,14.41959]
[1743188656554,11.37238,1882.4,1882.1,9.1065]
[1743188657336,11.37238,1882.4,1882.1,5.7922]
[1743188658756,5.31274,1882.3,1882.1,5.7922]
[1743188661074,5.31274,1882.3,1882.1,5.034]
[1743188661940,10.62559,1882.3,1882.2,5.035]
[1743188662372,5.31274,1882.3,1882.2,5.035]
[1743188663483,11.37237,1882.4,1882.2,5.035]
[1743188663775,16.68496,1882.4,1882.2,5.035]
[1743188664478,5.31264,1882.3,1882.2,5.035]
[1743188669669,6.06,1882.4,1882.2,5.035]
[1743188669989,6.06,1882.4,1882.2,5.8245]
[1743188670886,11.37168,1882.7,1882.3,10.62515]
[1743188671281,6.06,1882.7,1882.4,5.31234]
[1743188671482,5.31124,1882.8,1882.5,6.10155]
[1743188671688,5.31124,1882.8,1882.6,5.035]
[1743188672277,8.31101,1882.9,1882.6,5.035]
[1743188673190,13.6222,1882.9,1882.6,5.035]
[1743188673356,8.31101,1882.9,1882.6,5.035]
[1743188673563,13.6221,1882.9,1882.6,5.035]
[1743188673892,8.31101,1882.9,1882.6,5.035]
[1743188675390,5.31134,1882.8,1882.6,5.035]
[1743188675594,5.31152,1882.7,1882.6,5.035]
[1743188675895,5.31152,1882.7,1882.6,5.034]
[1743188683596,11.37134,1882.8,1882.6,5.8205]
[1743188683898,16.68283,1882.8,1882.6,5.8205]
[1743188684514,5.31152,1882.7,1882.6,5.8205]
[1743188684715,5.31152,1882.7,1882.6,5.034]
[1743188690219,5.31152,1882.7,1882.1,28.113]
[1743188690220,5.31277,1882.3,1882.1,28.113]
[1743188690516,5.31354,1882.0,1881.8,0.7638]
[1743188690717,5.31354,1882.0,1881.9,5.033]
[1743188690891,5.31384,1881.9,1881.5,5.31471]
[1743188691220,5.31384,1881.9,1881.6,5.033]
[1743188692207,5.31384,1881.9,1881.5,7.174999]
[1743188692407,5.31434,1881.7,1881.6,5.033]
[1743188692608,5.31475,1881.6,1881.3,28.11]
[1743188692920,5.3149,1881.5,1881.4,5.033]
[1743188695618,6.10685,1881.6,1881.4,5.033]
[1743188695824,5.31475,1881.6,1881.4,5.033]
[1743188697101,5.3149,1881.5,1881.4,5.033]
[1743188698120,9.15024447,1881.5,1881.4,5.033]
[1743188698295,5.3149,1881.5,1881.4,5.033]
[1743188699528,5.31523,1881.4,1881.0,6.07495]
[1743188699729,5.31523,1881.4,1881.1,5.034]
[1743188699929,10.63064,1881.4,1881.1,5.034]
[1743188700131,10.63064,1881.4,1881.0,0.7588]
[1743188700132,5.31557,1881.3,1881.0,0.7588]
[1743188700306,10.63131,1881.3,1881.1,5.035]
[1743188700713,10.63131,1881.3,1881.2,5.035]
[1743188700899,5.31557,1881.3,1881.2,5.035]
[1743188702305,3.83534447,1881.5,1881.2,5.035]
[1743188702306,3.0,1881.5,1881.2,5.035]
[1743188702506,5.31534,1881.4,1881.2,5.035]
[1743188702908,5.31547,1881.3,1881.2,5.035]
[1743188704239,5.31581,1881.2,1881.0,0.7588]
[1743188704438,5.31581,1881.2,1881.1,5.035]
[1743188704954,6.06,1881.6,1881.2,6.1046]
[1743188705118,3.0,1881.6,1881.3,5.31533]
[1743188705449,3.0,1881.6,1881.4,0.789]
[1743188705647,5.31455,1881.7,1881.5,5.035]
[1743188706207,3.0,1881.6,1881.5,5.035]
[1743188706512,6.06,1881.9,1881.6,5.31461]
[1743188706850,6.06,1882.3,1881.9,5.31351]
[1743188707137,5.3128,1882.3,1882.1,0.7934]
[1743188707517,11.37248,1882.4,1882.1,0.7934]
[1743188708100,9.94598447,1882.5,1882.1,0.7934]
[1743188708301,5.31214,1882.5,1882.1,1.907582]
[1743188708519,5.3125,1882.4,1882.1,1.907582]
[1743188709144,5.3125,1882.4,1882.1,0.7934]
[1743188709373,5.31282,1882.3,1882.1,0.7934]
[1743188709519,3.83534447,1882.2,1882.0,5.035]
[1743188709849,5.31309,1882.2,1882.0,5.035]
[1743188710456,5.31295,1882.2,1882.0,5.035]
[1743188711016,9.14829447,1882.2,1882.0,5.035]
[1743188711221,5.31321,1882.1,1882.0,5.035]
[1743188711823,5.3127,1882.3,1882.0,5.8147]
[1743188712023,5.3127,1882.3,1882.0,6.927524]
[1743188712250,8.31249,1882.4,1882.1,5.3132]
[1743188712447,8.31249,1882.4,1882.0,12.240964]
[1743188712646,6.83534447,1882.4,1882.0,6.927524]
[1743188712861,5.31338,1882.1,1881.9,0.7677]
[1743188713017,5.31338,1882.1,1881.7,0.8096]
[1743188713018,5.31359,1882.0,1881.7,0.8096]
[1743188713223,9.14956447,1881.8,1881.7,5.034]
[1743188713444,5.31422,1881.8,1881.7,5.034]
[1743188714090,9.92877447,1881.9,1881.7,5.034]
[1743188714091,15.20890447,1882.0,1881.7,5.034]
[1743188714379,6.06,1882.0,1881.7,5.034]
[1743188714593,6.06,1882.0,1881.9,0.8309]
[1743188714735,3.0,1882.4,1882.0,5.31341]
[1743188714940,3.0,1882.4,1882.1,5.034]
[1743188715140,3.0,1882.4,1882.1,10.3472]
[1743188715340,3.0,1882.4,1882.2,0.8076]
[1743188715762,8.31209,1882.5,1882.2,0.8076]
[1743188715965,3.0,1882.5,1882.2,0.8076]
[1743188716158,9.92501447,1882.6,1882.2,0.8076]
[1743188716360,8.31208,1882.5,1882.2,0.8076]
[1743188717463,9.14721447,1882.6,1882.2,7.3925691]
[1743188717646,11.37157,1882.7,1882.2,7.3923491]
[1743188717847,15.20691447,1882.7,1882.3,5.31261]
[1743188718044,20.51865447,1882.7,1882.2,7.3925491]
[1743188718251,9.14819447,1882.3,1882.2,5.034]
[1743188719159,5.31285,1882.3,1882.2,5.034]
[1743188722787,9.14819447,1882.3,1882.2,5.034]
[1743188723447,5.31241,1882.4,1882.2,5.034]
[1743188723651,5.3121,1882.5,1882.2,5.034]
[1743188724072,10.6244,1882.5,1882.2,5.034]
[1743188724265,5.3124,1882.4,1882.2,5.034]
[1743188725185,9.14798447,1882.3,1882.2,5.034]
[1743188726487,5.31264,1882.3,1882.2,5.034]
[1743188727258,9.14798447,1882.3,1882.2,5.034]
[1743188727588,5.31311,1882.2,1882.1,5.034]
[1743188727758,5.31267,1882.3,1882.1,5.034]
[1743188728087,10.62556,1882.3,1882.1,5.034]
[1743188731791,5.31267,1882.3,1882.1,5.034]
[1743188732093,5.31442,1881.7,1881.6,5.034]
[1743188732301,5.31481,1881.6,1881.4,19.534]
[1743188732500,9.15024447,1881.5,1881.4,5.034]
[1743188732806,12.15024447,1881.5,1881.4,5.034]
[1743188733778,5.31596,1881.2,1880.8,0.7825]
[1743188733984,3.83534447,1881.0,1880.7,28.117]
[1743188734195,3.83534447,1881.0,1880.9,5.034]
[1743188734510,9.06,1881.2,1880.9,5.034]
[1743188734511,6.06,1881.2,1880.9,5.034]
[1743188734711,3.0,1881.1,1880.9,5.034]
[1743188736000,8.31605,1881.1,1880.9,5.034]
[1743188736405,3.0,1881.1,1880.9,5.034]
[1743188737720,3.0,1881.1,1880.9,19.534]
[1743188737881,6.06,1881.2,1880.9,19.534]
[1743188738224,6.06,1881.2,1881.0,0.8079]
[1743188738512,16.00866447,1881.6,1881.0,0.8079]
[1743188738718,11.37462,1881.6,1881.1,5.31581]
[1743188738891,6.06,1881.6,1881.1,5.31581]
[1743188739213,6.06,1881.6,1881.2,5.847311]
[1743188739402,6.06,1881.6,1881.4,0.8079]
[1743188739603,11.37436,1881.7,1881.4,0.8079]
[1743188740004,6.06,1881.7,1881.4,6.12306]
[1743188740411,6.06,1881.7,1881.4,0.8079]
[1743188740889,6.06,1881.7,1881.4,2.06426912]
[1743188741894,15.20969447,1881.7,1881.4,2.06426912]
[1743188742216,5.31472,1881.6,1881.5,5.035]
[1743188742407,9.15006447,1881.6,1881.5,5.035]
[1743188742819,5.31518,1881.5,1881.0,5.31623]
[1743188742992,9.15078447,1881.4,1881.1,5.035]
[1743188743395,5.3155,1881.3,1881.1,5.035]
[1743188745233,15.21025447,1881.5,1881.1,5.035]
[1743188745435,6.06,1881.5,1881.2,6.11637]
[1743188746333,11.37493,1881.5,1881.2,0.8008]
[1743188747033,6.06,1881.5,1881.2,11.43207]
[1743188747211,6.06,1881.5,1881.2,6.1164]
[1743188747407,6.06,1881.5,1881.3,5.31546]
[1743188747742,5.31417,1881.8,1881.5,0.8261]
[1743188748037,5.31417,1881.8,1881.6,5.035]
[1743188748722,3.0,1881.8,1881.6,5.035]
[1743188752039,8.31407,1881.8,1881.6,5.035]
[1743188752217,5.31434,1881.7,1881.6,5.035]
[1743188752422,9.14968447,1881.7,1881.6,5.035]
[1743188752718,9.14969447,1881.7,1881.6,5.035]
[1743188752918,5.31435,1881.7,1881.6,5.035]
[1743188753424,8.31414,1881.8,1881.6,5.035]
[1743188753730,3.0,1881.8,1881.6,5.035]
[1743188753931,16.68719,1882.0,1881.7,0.8241]
[1743188754136,5.31379,1881.9,1881.7,0.8241]
[1743188754515,14.46313447,1881.9,1881.6,5.035]
[1743188754716,5.31407,1881.8,1881.6,5.035]
[1743188756348,10.62833,1881.8,1881.6,5.035]
[1743188756544,5.31407,1881.8,1881.6,5.035]
[1743188756853,5.31407,1881.8,1881.4,5.315]
[1743188756854,9.14941447,1881.8,1881.7,5.035]
[1743188758353,5.31407,1881.8,1881.7,5.035]
[1743188759443,10.6278,1881.9,1881.7,5.035]
[1743188760364,5.31406,1881.8,1881.7,5.035]
[1743188762968,9.14940447,1881.8,1881.7,5.035]
[1743188763165,12.97250447,1881.8,1881.7,5.035]
[1743188763373,10.62947,1881.6,1881.3,0.8241]
[1743188763550,5.31465,1881.6,1881.4,5.034]
[1743188765155,5.31465,1881.6,1881.5,5.034]
[1743188765953,5.31547,1881.3,1881.1,0.8068]
[1743188766151,5.31547,1881.3,1881.2,5.034]
[1743188766368,5.31547,1881.3,1881.0,14.5]
[1743188766562,5.31547,1881.3,1881.1,5.034]
[1743188767654,5.31575,1881.2,1881.1,5.034]
[1743188767855,9.15109447,1881.2,1881.1,5.034]
[1743188768055,5.31575,1881.2,1881.1,5.034]
[1743188769051,9.15056447,1881.4,1881.1,5.034]
[1743188769052,5.31553,1881.3,1881.1,5.034]
[1743188770041,5.31549,1881.3,1881.1,5.034]
[1743188770477,5.31522,1881.4,1881.1,5.034]
[1743188770478,10.6306,1881.4,1881.1,5.034]
[1743188771476,16.6906,1881.4,1881.1,5.034]
[1743188772375,16.69053,1881.4,1881.2,14.5]
[1743188773072,11.37522,1881.4,1881.1,5.034]
[1743188773447,10.6312,1881.3,1881.1,19.534]
[1743188773652,6.06,1881.4,1881.1,19.534]
[1743188773961,11.37527,1881.4,1881.1,22.019028]
[1743188774299,11.37527,1881.4,1881.1,19.534]
[1743188774847,20.52605447,1881.4,1881.1,19.534]
[1743188775045,5.31549,1881.3,1881.1,19.534]
[1743188775298,5.31549,1881.3,1881.1,5.034]
[1743188775580,15.21061447,1881.4,1881.1,5.034]
[1743188775775,20.52600447,1881.4,1881.1,5.034]
[1743188776480,15.21061447,1881.4,1881.1,5.034]
[1743188776773,20.52604447,1881.4,1881.1,5.034]
[1743188776977,15.21061447,1881.4,1881.1,5.034]
[1743188777558,5.31567,1881.3,1881.2,5.035]
[1743188777896,9.15101447,1881.3,1881.2,5.035]
[1743188778882,5.31567,1881.3,1881.2,5.035]
[1743188779558,6.06,1881.4,1881.2,6.2999]
[1743188779756,4.22661683,1881.8,1881.5,0.7614]
[1743188779757,6.06,1881.8,1881.5,0.7614]
[1743188779979,6.06,1881.8,1881.7,5.31434]
[1743188780182,5.31351,1882.0,1881.7,5.31434]
[1743188780183,11.37351,1882.0,1881.7,0.7614]
[1743188780677,6.06,1882.0,1881.7,6.07573]
[1743188780876,11.3736,1882.0,1881.7,0.7614]
[1743188782351,11.3736,1882.0,1881.7,6.07571]
[1743188782552,11.3736,1882.0,1881.7,7.718226]
[1743188782751,11.3736,1882.0,1881.7,2.403916]
[1743188782946,9.89534447,1882.0,1881.5,5.31489]
[1743188783148,9.96769447,1881.9,1881.6,5.035]
[1743188784172,6.06,1882.0,1881.9,5.31377]
[1743188784378,6.06,1882.0,1881.9,6.07107]
[1743188786893,6.06,1882.5,1882.2,5.3127]
[1743188787062,6.06,1882.6,1882.3,11.13793]
[1743188787258,6.06,1882.6,1882.4,5.31226]
[1743188787685,6.06,1882.6,1882.5,5.31208]
[1743188788258,6.06,1882.6,1882.5,7.193914]
[1743188788661,6.06,1883.0,1882.5,7.193914]
[1743188788878,6.06,1883.1,1882.9,5.31077]
[1743188789079,6.06,1883.2,1883.0,5.034]
[1743188791437,11.37012,1883.2,1883.0,5.034]
[1743188794919,6.06,1883.2,1883.0,5.034]
[1743188795291,11.37011,1883.2,1883.0,5.034]
[1743188796219,6.06,1883.2,1883.0,11.15531]
[1743188796388,6.06,1883.2,1883.0,12.270841]
[1743188796590,6.06,1883.2,1883.0,6.960431]
[1743188797640,6.06,1883.2,1883.0,12.271101]
[1743188798600,6.06,1883.2,1883.0,6.960431]
[1743188799325,6.06,1883.2,1883.0,12.271021]
[1743188800809,11.36984,1883.3,1883.0,12.271021]
[1743188801129,11.36984,1883.3,1883.0,5.8449]
[1743188802128,5.3102,1883.2,1883.0,5.8449]
[1743188802331,11.36984,1883.3,1883.0,5.8449]
[1743188803106,16.67987,1883.3,1883.0,5.034]
[1743188803428,5.31017,1883.2,1882.9,5.31078]
[1743188803601,6.09807,1883.2,1883.1,5.031]
[1743188803804,5.31105,1882.9,1882.5,7.22819639]
[1743188804019,5.31105,1882.9,1882.6,5.0841124]
[1743188804245,5.31105,1882.9,1882.6,5.031]
[1743188804853,5.3117,1882.7,1882.5,0.8315]
[1743188805049,5.3123,1882.5,1882.2,0.798]
[1743188805265,5.31238,1882.4,1882.3,5.031]
[1743188805463,16.68463,1882.5,1882.3,5.031]
[1743188805751,11.3723,1882.5,1882.3,5.031]
[1743188805962,6.06,1882.5,1882.3,5.5341]
[1743188806166,6.06,1882.5,1882.4,6.11036]
[1743188806327,6.06,1882.5,1882.4,0.798]
[1743188808134,6.06,1882.5,1882.3,10.84669]
[1743188808430,6.06,1882.5,1882.3,5.031]
[1743188808842,6.06,1882.5,1882.3,10.34357]
[1743188809037,6.06,1882.5,1882.4,5.31236]
[1743188809471,6.06,1882.5,1882.3,10.34356]
[1743188809665,11.37155,1882.7,1882.3,10.34356]
[1743188809869,11.37155,1882.7,1882.3,17.35152608]
[1743188810153,11.37155,1882.7,1882.3,11.985846]
[1743188810683,16.6833,1882.7,1882.3,11.985846]
[1743188810987,16.6833,1882.7,1882.3,10.34344]
[1743188811779,5.3118,1882.6,1882.3,10.34344]
[1743188811983,16.68327,1882.7,1882.3,10.34344]
[1743188812282,11.37155,1882.7,1882.3,10.34344]
[1743188812887,11.37155,1882.7,1882.4,5.31235]
[1743188813074,11.37155,1882.7,1882.3,10.34344]
[1743188813278,11.37155,1882.7,1882.3,11.454544]
[1743188813859,16.68329,1882.7,1882.3,11.454544]
[1743188814389,11.37155,1882.7,1882.3,16.767034]
[1743188814589,11.37155,1882.7,1882.3,11.454544]
[1743188815279,11.37155,1882.7,1882.3,11.454514]
[1743188815893,11.37155,1882.7,1882.3,16.766994]
[1743188816203,6.06,1882.7,1882.4,7.04202956]
[1743188816508,11.37165,1882.7,1882.4,1.6766994]
[1743188816667,5.31193,1882.6,1882.3,5.031]
[1743188816986,5.31183,1882.6,1882.3,5.031]
[1743188817166,5.31183,1882.6,1882.3,10.34362]
[1743188817363,11.37158,1882.7,1882.3,15.65608]
[1743188817685,11.37158,1882.7,1882.3,10.34346]
[1743188817885,11.37158,1882.7,1882.4,5.31232]
[1743188818193,11.37158,1882.7,1882.3,10.34346]
[1743188818359,11.37158,1882.7,1882.3,15.65593]
[1743188818560,11.37158,1882.7,1882.3,10.34346]
[1743188818760,11.37158,1882.7,1882.3,15.65596]
[1743188819081,11.37158,1882.7,1882.3,10.34346]
[1743188819280,11.37158,1882.7,1882.3,15.65593]
[1743188819483,11.37158,1882.7,1882.4,5.31235]
[1743188819678,11.37158,1882.7,1882.3,10.34346]
[1743188820585,5.31158,1882.7,1882.3,10.34346]
[1743188820784,3.83534447,1882.8,1882.0,0.49204674]
[1743188820981,8.31071,1883.0,1882.1,5.031]
[1743188820982,5.31279,1882.3,1882.1,5.031]
[1743188821169,5.31236,1882.4,1882.1,5.031]
[1743188821374,11.43893,1882.6,1882.2,5.31282]
[1743188821694,6.12689,1882.6,1882.2,5.31282]
[1743188821869,4.65024447,1882.9,1882.2,0.7927]
[1743188822191,4.65024447,1882.9,1882.3,5.31244]
[1743188822192,5.31156,1882.7,1882.3,5.31244]
[1743188822396,6.12682,1882.6,1882.2,6.10549]
[1743188822770,6.12682,1882.6,1882.2,11.41825]
[1743188823181,0.8149,1882.6,1882.3,5.31259]
[1743188823692,6.1268,1882.6,1882.2,6.10546]
[1743188824891,0.8149,1882.6,1882.3,5.31246]
[1743188825097,10.62339,1882.7,1882.3,5.31246]
[1743188825395,5.31181,1882.6,1882.3,5.31246]
[1743188825589,5.31181,1882.6,1882.2,11.41818]
[1743188826195,8.3116,1882.7,1882.3,10.62508]
[1743188826784,5.31187,1882.6,1882.3,5.31245]
[1743188827097,5.31181,1882.6,1882.3,5.31245]
[1743188827595,3.0,1882.7,1882.4,5.31224]
[1743188827792,6.07079,1882.8,1882.5,5.031]
[1743188828005,5.31048,1883.1,1882.7,5.31134]
[1743188828371,5.31049,1883.1,1882.8,6.11023]
[1743188828580,6.13526,1883.2,1882.9,5.031]
[1743188829192,5.30985,1883.3,1882.9,5.031]
[1743188829497,5.30946,1883.5,1883.1,6.10347]
[1743188829703,6.12852,1883.8,1883.4,5.30939]
[1743188829866,6.12852,1883.8,1883.5,5.031]
[1743188830063,5.35829,1883.9,1883.5,11.09203]
[1743188830485,0.05,1883.9,1883.5,5.783]
[1743188830700,0.05,1883.9,1883.8,5.30841]
[1743188830995,0.05,1883.9,1883.8,6.370096]
[1743188831569,0.05,1883.9,1883.8,7.172196]
[1743188832105,0.05,1883.9,1883.8,6.894786]
[1743188832899,0.05,1883.9,1883.8,12.203196]
[1743188837097,0.05,1883.9,1883.8,6.892786]
[1743188837291,0.05,1883.9,1883.8,12.201196]
[1743188838314,0.05,1883.9,1883.8,6.892786]
[1743188838624,0.05,1883.9,1883.8,5.028]
[1743188838834,5.35827,1883.9,1883.8,5.028]
[1743188839128,0.05,1883.9,1883.8,5.028]
[1743188839838,0.05,1883.9,1883.8,10.33641]
[1743188840610,0.05,1883.9,1883.8,11.14731]
[1743188840807,0.05,1883.9,1883.8,13.342896]
[1743188841303,0.05,1883.9,1883.8,27.292896]
[1743188844114,0.05,1883.9,1883.8,22.264896]
[1743188844304,0.05,1883.9,1883.8,25.64731]
[1743188845840,1e-05,1883.9,1883.8,26.19731]
[1743188846139,1e-05,1883.9,1883.8,29.19731]
[1743188848027,1e-05,1883.9,1883.8,29.50251586]
[1743188848347,1e-05,1883.9,1883.8,33.44133807]
[1743188848548,1e-05,1883.9,1883.8,33.93215345]
[1743188849453,1e-05,1883.9,1883.8,34.42064287]
[1743188851060,1e-05,1883.9,1883.8,36.10622926]
[1743188851649,1e-05,1883.9,1883.8,27.52822926]
[1743188851831,1e-05,1883.9,1883.8,32.55522926]
[1743188852041,1e-05,1883.9,1883.8,36.10522926]
[1743188852337,1e-05,1883.9,1883.8,34.98873063]
[1743188853100,1e-05,1883.9,1883.8,30.94791525]
[1743188853237,1e-05,1883.9,1883.8,30.64270939]
[1743188853925,1e-05,1883.9,1883.8,28.78423221]
[1743188854388,1e-05,1883.9,1883.8,28.39160938]
[1743188856145,1e-05,1883.9,1883.8,19.535]
[1743188856465,1e-05,1883.9,1883.8,24.84341]
[1743188856667,1e-05,1883.9,1883.8,14.5]
[1743188856848,1e-05,1883.9,1883.8,19.542]
[1743188858046,1e-05,1883.9,1883.8,24.85041]
[1743188858246,1e-05,1883.9,1883.8,26.03359399]
[1743188859150,1e-05,1883.9,1883.8,27.33849399]
[1743188859346,1e-05,1883.9,1883.8,30.33849399]
[1743188860080,1e-05,1883.9,1883.8,32.66431386]
[1743188864589,1e-05,1883.9,1883.8,32.11431386]
[1743188864885,1e-05,1883.9,1883.8,27.07231386]
[1743188865090,1e-05,1883.9,1883.8,32.67431386]
[1743188866259,1e-05,1883.9,1883.8,60.75731386]
[1743188866760,1e-05,1883.9,1883.8,61.80967656]
[1743188869991,0.1110661,1884.6,1884.4,5.30672]
[1743188870193,0.1110661,1884.6,1884.5,10.94417108]
[1743188870395,0.1110661,1884.6,1884.5,10.891112]
[1743188871076,0.1110661,1884.6,1884.5,11.3862888]
[1743188871293,0.1110661,1884.6,1884.5,12.18697583]
[1743188871487,0.1110661,1884.6,1884.5,13.21693187]
[1743188871897,0.1110661,1884.6,1884.5,16.21693187]
[1743188872104,0.1110661,1884.6,1884.5,17.56033187]
[1743188872298,0.1110661,1884.6,1884.5,17.01033187]
[1743188872500,0.1110661,1884.6,1884.5,16.21893187]
[1743188874306,0.1110661,1884.6,1884.5,30.71893187]
[1743188875007,0.1110661,1884.6,1884.5,32.05033187]
[1743188875907,8.30371,1885.5,1885.2,5.30436]
[1743188875908,0.8029,1885.5,1885.2,5.30436]
[1743188876072,0.8029,1885.5,1885.3,5.065]
[1743188876280,0.8029,1885.4,1885.3,5.065]
[1743188880214,8.71086264,1885.7,1885.3,5.065]
[1743188880215,0.7772,1885.6,1885.3,5.065]
[1743188880427,0.7772,1885.6,1885.3,15.67308]
[1743188880732,0.7772,1885.6,1885.5,5.30363]
[1743188881025,0.7772,1885.6,1885.4,5.30378]
[1743188881313,0.7772,1885.6,1885.5,5.30363]
[1743188882096,6.8145,1885.8,1885.6,10.60653]
[1743188882298,6.06,1885.8,1885.7,10.36507]
[1743188882495,0.05,1885.9,1885.8,5.30278]
[1743188882701,0.05,1885.9,1885.8,6.869565]
[1743188883314,0.05,1885.9,1885.8,6.92258234]
[1743188883516,0.05,1885.9,1885.8,6.869565]
[1743188883688,0.05,1885.9,1885.8,6.92258232]
[1743188883890,0.05,1885.9,1885.8,7.47258232]
[1743188884511,0.05,1885.9,1885.8,21.97258232]
[1743188884726,0.05,1885.9,1885.8,21.919565]
[1743188885228,0.05,1885.9,1885.8,22.741765]
[1743188887512,0.05,1885.9,1885.8,25.741765]
[1743188888425,0.05,1885.9,1885.8,20.438985]
[1743188890431,0.05,1885.9,1885.8,21.50596919]
[1743188891832,0.05,1885.9,1885.8,20.13376919]
[1743188892128,0.05,1885.9,1885.8,2.63376919]
[1743188892329,0.05,1885.9,1885.8,6.12998419]
[1743188892500,0.05,1885.9,1885.8,20.68300213]
[1743188892832,0.05,1885.9,1885.8,20.62998419]
[1743188893508,0.05,1885.9,1885.8,25.93276419]
[1743188893920,0.8105,1885.9,1885.8,5.06]
[1743188894747,0.05,1885.9,1885.8,11.50432372]
[1743188894908,0.05,1885.9,1885.8,12.05432372]
[1743188895107,0.05,1885.9,1885.8,11.50432372]
[1743188897511,0.1110661,1886.4,1886.3,5.30138]
[1743188897708,0.1110661,1886.4,1886.3,10.37738]
[1743188897922,0.1110661,1886.4,1886.3,26.57675695]
[1743188898127,0.1110661,1886.4,1886.3,26.523754]
[1743188898529,0.1110661,1886.4,1886.3,55.130754]
[1743188899145,0.1110661,1886.4,1886.3,54.580754]
[1743188899941,0.8673661,1886.4,1886.3,42.557]
[1743188900110,0.8673661,1886.4,1886.3,33.145]
[1743188900618,0.8673661,1886.4,1886.3,38.44638]
[1743188900619,0.1110661,1886.4,1886.3,38.44638]
[1743188901916,0.1110661,1886.4,1886.3,33.145]
[1743188904415,6.1921661,1886.4,1886.3,33.145]
[1743188904614,6.1921661,1886.4,1886.3,28.057]
[1743188904810,6.1921661,1886.4,1886.3,33.152]
[1743188905010,0.8910661,1886.4,1886.3,33.152]
[1743188906247,6.1921661,1886.4,1886.3,33.152]
[1743188906442,0.8910661,1886.4,1886.3,33.152]
[1743188906850,6.1921661,1886.4,1886.3,33.152]
[1743188907214,0.8910661,1886.4,1886.3,33.152]
[1743188907455,0.8910661,1886.4,1886.3,38.45338]
[1743188907928,0.1110661,1886.4,1886.3,42.298718]
[1743188908244,0.1110661,1886.4,1886.3,45.298718]
[1743188908753,0.1110661,1886.4,1886.3,46.093418]
[1743188909165,0.1110661,1886.4,1886.3,46.88942326]
[1743188909546,0.1110661,1886.4,1886.3,47.91315441]
[1743188909747,0.1110661,1886.4,1886.3,48.95532252]
[1743188910958,0.1110661,1886.4,1886.3,63.45532252]
[1743188914161,0.1110661,1886.4,1886.3,59.11062252]
[1743188917069,0.1110661,1886.4,1886.3,59.66062252]
[1743188923191,0.1110661,1886.4,1886.3,54.01562252]
[1743188923482,0.1110661,1886.4,1886.3,59.09062252]
[1743188926985,6.9987661,1886.4,1886.3,6.15724252]
[1743188927153,12.2998661,1886.4,1886.3,7.40190452]
[1743188927857,12.2998661,1886.4,1886.3,6.37817337]
[1743188928057,12.2998661,1886.4,1886.3,5.58216811]
[1743188928374,12.2998661,1886.4,1886.3,5.09]
[1743188933073,12.2998661,1886.4,1886.3,19.59]
[1743188933473,6.9987661,1886.4,1886.3,19.59]
[1743188933668,12.2998661,1886.4,1886.3,19.59]
[1743188935075,6.9987661,1886.4,1886.3,20.18201072]
[1743188937474,6.9987661,1886.4,1886.3,5.68201072]
[1743188937782,6.9987661,1886.4,1886.3,5.09]
[1743188940398,6.1710661,1886.4,1886.3,10.39138]
[1743188940702,0.1110661,1886.4,1886.3,10.39138]
[1743188940870,0.1110661,1886.4,1886.3,10.0802242]
[1743188941197,0.1110661,1886.4,1886.3,15.45194996]
[1743188941402,0.1110661,1886.4,1886.3,15.39894877]
[1743188941898,0.1110661,1886.4,1886.3,16.77274877]
[1743188942681,0.1110661,1886.4,1886.3,17.07290457]
[1743188942893,0.1110661,1886.4,1886.3,14.07852105]
[1743188943091,0.1110661,1886.4,1886.3,13.52852105]
[1743188943511,0.1110661,1886.4,1886.3,12.70472105]
[1743188943688,0.1110661,1886.4,1886.3,27.20472105]
[1743188943891,0.1110661,1886.4,1886.3,28.62281431]
[1743188946009,0.1110661,1886.4,1886.3,29.67386279]
[1743188947715,0.1110661,1886.4,1886.3,34.02656279]
[1743188954789,6.1e-06,1886.4,1886.3,34.02656279]
[1743188955821,6.1e-06,1886.4,1886.3,34.5103899]